Workbook

Sheet pieghe90° (hidden)
A3: Fattore K = | C3: 0.50
A5: Misure Esterne
D6: 1° Linea di piega (Rif.A) | E6: 2° Linea di piega | F6: 3° linea di piega(Rif.B) | G6: 4° linea di piega | I6: Misura taglio | J6: Sviluppo
A7: Spessore | C7: 5
A9: 1°piega | C9: 25 | D9: =((C7*C3)+C10)*0.785+C9-C7-C10 -> 20.8875
A10: raggio int | C10: 5
A11: 2°piega | C11: 25 | E11: =((C7*C3)+C12)*1.57+C11-(C7*2)-(C12*2) -> 16.775 | I11: =IFERROR((C7/2+C10)*0.785+C11-C7-C12+D9,"") -> 41.775 | J11: due lati
A12: raggio int | C12: 5
A13: 3°piega | C13: 200 | F13: =IF(C13=0,"",((C7*C3)+C14)*0.785+C13-C7-C14) -> 195.8875 | I13: =IFERROR((C7/2+C10)*0.785+D9+E11+C13-C12-C7,"") -> 233.55 | J13: tre lati
A14: raggio int | C14: 5
A15: 4°piega | C15: 100 | G15: =IF(C15=0,"",((C7*C3)+C16)*1.57+C15-(C7*2)-(C16*2)) -> 91.775 | I15: =IFERROR((C7/2+C10)*0.785+D9+E11+G15+C13-C12-C7,"") -> 325.325 | J15: quattro lati
A16: raggio int | C16: 5
A18: X | C18: 500 | H18: =IF(C18=0,"",(C7/2+C16)*1.57+C18-(C7*2)-(C16*2)) -> 491.775 | I18: =IFERROR((C7/2+C10)*0.785+D9+E11+G15+H18+C13-C12-C7,"") -> 817.1 | J18: cinque lati
F28: 2 lati(una piega ) | G28: =I11-D9 -> 20.8875

Sheet Start
K26: Calcolo Piega

Sheet Pieghe aperte (hidden)
R8: =(TAN(R25)) -> 1.920982127 | S8: =(TAN(R21)) -> 1.920982127
R9: =C17+C24 -> 4 | S9: =C17+C20 -> 4
R10: =R24*D25 -> 3.270833333 | S10: =R20*D21 -> 3.270833333
R11: =R9+R10 -> 7.270833333 | S11: =S9+S10 -> 7.270833333
R12: =R8*(R9) -> 7.683928508 | S12: =S8*(S9) -> 7.683928508
F16: 1a Linea di piega (A) | H16: 2a Linea di piega | J16: 3a linea di piega (B) | L16: Misura taglio
A17: Spessore | C17: 2
A18: fatt K | C18: 0.50
A19: primo lato | C19: 20
A20: raggio int | C20: 2 | R20: =((C20+(C17*$C$18))*3.14)/180 -> 0.05233333333
A21: Angolo | C21: 125 | D21: =C21/2 -> 62.5 | F21: =C19-(TAN(R21)*(C17+C20))+(((R20*D21))) -> 15.58690483 | R21: =RADIANS(C21/2) -> 1.090830782
A23: secondo lato | C23: 150
A24: raggio int | C24: 2 | R24: =((C24+(C17*$C$18))*3.14)/180 -> 0.05233333333
A25: Angolo | C25: 125 | D25: =C25/2 -> 62.5 | H25: =C23-R12-S12 -> 134.632143 | L25: =F21+J29 -> 31.17380965 | R25: =RADIANS(C25/2) -> 1.090830782
A27: terzo lato | C27: 20
A28: raggio int | C28: 2
A29: Angolo | C29: =$C$25 -> 125 | D29: =$D$25 -> 62.5 | J29: =C27-(TAN(R25)*(C17+C28))+(((R24*D25))) -> 15.58690483 | L29: =J29+H25+F21 -> 165.8059526
